fUST/lending_fUST_20250719
["ID","MTS","AMOUNT","RATE_DAILY","PERIOD"]
[373205450,1752905456401,-309.301731,0.00024,7]
[373205451,1752905456411,-151.0,0.00024,7]
[373205452,1752905456420,-255.79144,0.00024,7]
[373205453,1752905456430,-410.668745,0.00024,7]
[373205454,1752905456440,-410.668745,0.00024,7]
[373205455,1752905456452,-215.67360783,0.00024,7]
[373205456,1752905456462,-151.0,0.00024,7]
[373205457,1752905456472,-203.956326,0.00024,7]
[373205458,1752905456482,-203.956326,0.00024,7]
[373205459,1752905456492,-151.0,0.00024,7]
[373205460,1752905456502,-151.0,0.00024,7]
[373205461,1752905456511,-200.919079,0.00024,7]
[373205462,1752905456521,-200.919079,0.00024,7]
[373205463,1752905456531,-151.0,0.00024,7]
[373205464,1752905456541,-12612.80205064,0.00024,30]
[373205465,1752905456552,-230.94145789,0.00024,7]
[373205466,1752905456561,-230.94145789,0.00024,10]
[373205467,1752905456571,-160.0,0.00024,7]
[373205468,1752905456580,-160.0,0.00024,10]
[373205469,1752905456590,-1201.486897,0.00024,7]
[373205470,1752905456600,-1201.486897,0.00024,7]
[373205471,1752905456609,-151.0,0.00024,7]
[373205472,1752905456619,-160.0,0.00024,7]
[373205473,1752905456699,-151.0,0.00024,7]
[373205474,1752905456716,-160.429221,0.00024,7]
[373205475,1752905456726,-160.429221,0.00024,7]
[373205476,1752905456735,-151.0,0.00024,7]
[373205477,1752905456745,-839.454303,0.00024,7]
[373205478,1752905456755,-839.454303,0.00024,10]
[373205479,1752905456765,-151.0,0.00024,7]
[373205480,1752905456775,-151.0,0.00024,7]
[373205481,1752905456785,-185.532593,0.00024,7]
[373205482,1752905456796,-185.532593,0.00024,7]
[373205483,1752905456806,-151.0,0.00024,7]
[373205484,1752905456815,-151.0,0.00024,7]
[373205485,1752905456825,-525.83049785,0.00024,7]
[373205486,1752905456835,-525.83049785,0.00024,10]
[373205487,1752905456845,-1724.49,0.00024013,7]
[373205488,1752905456856,-725.3434561,0.00024019,2]
[373205489,1752905456865,-429.3901486,0.00024027,2]
[373205490,1752905456875,-429.3901486,0.00024027,2]
[373205491,1752905456885,-4760.15730783,0.00024072,10]
[373205492,1752905456895,-255.79144,0.00024075,7]
[373205493,1752905456905,-255.79144,0.00024078,3]
[373205494,1752905456915,-153.5086995,0.00024082,2]
[373205495,1752905456925,-700.0,0.00024096,2]
[373205496,1752905456935,-2382.15,0.000241,7]
[373205497,1752905456944,-1724.49,0.00024113,2]
[373205498,1752905456954,-151.0,0.00024148,6]
[373205499,1752905456964,-255.79144,0.0002415,7]
[373205500,1752905456974,-968.0,0.00024197,2]
[373205501,1752905456984,-200.0,0.0002421,9]
[373205502,1752905456994,-1724.49,0.00024213,3]
[373205503,1752905457004,-386012.36,0.00024213,9]
[373205504,1752905457014,-6635.69935498,0.00024217,2]
[373205505,1752905457024,-407.0,0.00024225,2]
[373205506,1752905457037,-255.79144,0.00024225,7]
[373205507,1752905457046,-5198.71681779,0.00024289,2]
[373205508,1752905457057,-2000.0,0.000243,2]
[373205509,1752905457067,-255.79144,0.000243,7]
[373205510,1752905457077,-255.79144,0.000243,14]
[373205511,1752905457087,-206.0,0.0002431,2]
[373205512,1752905457097,-1724.49,0.00024313,6]
[373205513,1752905457109,-4760.15730783,0.00024348,11]
[373205514,1752905457119,-235.0998931,0.00024356,2]
[373205515,1752905457129,-255.79144,0.00024376,6]
[373205516,1752905457140,-1724.49,0.00024413,3]
[373205517,1752905457151,-255.79144,0.00024445,10]
[373205518,1752905457161,-5000.0,0.00024479,3]
[373205519,1752905457172,-2001.82081499,0.000245,3]
[373205520,1752905457183,-654.0,0.000245,30]
[373205521,1752905457194,-1160.0,0.00024508,2]
[373205522,1752905457204,-1724.49,0.00024513,7]
[373205523,1752905457216,-153.0,0.00024548,2]
[373205524,1752905457226,-153.0,0.00024548,2]
[373205525,1752905457237,-153.0,0.00024548,2]
[373205526,1752905457247,-153.0,0.00024548,2]
[373205527,1752905457256,-153.0,0.00024548,2]
[373205528,1752905457266,-153.0,0.00024548,2]
[373205529,1752905457277,-153.0,0.00024548,2]
[373205530,1752905457286,-153.0,0.00024548,2]
[373205531,1752905457296,-153.0,0.00024548,2]
[373205532,1752905457306,-153.0,0.00024548,2]
[373205533,1752905457316,-153.0,0.00024548,2]
[373205534,1752905457326,-153.0,0.00024548,2]
[373205535,1752905457335,-153.0,0.00024548,2]
[373205536,1752905457345,-2000.0,0.000246,2]
[373205537,1752905457355,-1724.49,0.00024613,4]
[373205538,1752905457366,-4760.15730783,0.00024624,11]
[373205539,1752905457376,-126766.64133998,0.0002464,7]
[373205540,1752905457386,-112330.54573108,0.0002465,2]
[373205541,1752905457396,-107247.43556332,0.0002465,2]
[373205542,1752905457406,-151.0,0.0002465,7]
[373205543,1752905457416,-151.0,0.0002465,7]
[373205544,1752905457427,-151.0,0.0002465,7]
[373205545,1752905457438,-151.0,0.0002465,7]
[373205546,1752905457451,-151.0,0.0002465,7]
[373205547,1752905457460,-151.0,0.0002465,7]
[373205548,1752905457470,-151.0,0.0002465,7]
[373205549,1752905457480,-200.399393,0.0002465,7]
[373205550,1752905457491,-200.399393,0.0002465,7]
[373205551,1752905457500,-151.0,0.0002465,7]
[373205552,1752905457511,-179.790355,0.0002465,7]
[373205553,1752905457521,-178.585793,0.0002465,7]
[373205554,1752905457534,-178.585793,0.0002465,7]
[373205555,1752905457544,-386.078219,0.0002465,7]
[373205556,1752905457558,-386.078219,0.0002465,7]
[373205557,1752905457568,-253.751263,0.0002465,7]
[373205558,1752905457578,-253.751263,0.0002465,7]
[373205559,1752905457588,-151.0,0.0002465,7]
[373205560,1752905457598,-228.289233,0.0002465,7]
[373205561,1752905457607,-228.289233,0.0002465,7]
[373205562,1752905457617,-309.301731,0.0002465,7]
[373205563,1752905457627,-309.301731,0.0002465,7]
[373205564,1752905457637,-151.0,0.0002465,7]
[373205565,1752905457647,-410.668745,0.0002465,7]
[373205566,1752905457658,-410.668745,0.0002465,7]
[373205567,1752905457669,-240.388876,0.0002465,7]
[373205568,1752905457680,-203.956326,0.0002465,7]
[373205569,1752905457691,-203.956326,0.0002465,7]
[373205570,1752905457702,-151.0,0.0002465,7]
[373205571,1752905457712,-151.0,0.0002465,7]
[373205572,1752905457721,-200.919079,0.0002465,7]
[373205573,1752905457731,-200.919079,0.0002465,7]
[373205574,1752905457741,-151.0,0.0002465,7]
[373205575,1752905457754,-1201.486897,0.0002465,7]
[373205576,1752905457764,-1201.486897,0.0002465,7]
[373205577,1752905457775,-151.0,0.0002465,7]
[373205578,1752905457786,-151.0,0.0002465,7]
[373205579,1752905457796,-160.429221,0.0002465,7]
[373205580,1752905457810,-160.429221,0.0002465,7]
[373205581,1752905457820,-151.0,0.0002465,7]
[373205582,1752905457830,-151.0,0.0002465,7]
[373205583,1752905457841,-151.0,0.0002465,7]
[373205584,1752905457851,-185.532593,0.0002465,7]
[373205585,1752905457862,-185.532593,0.0002465,7]
[373205586,1752905457872,-152.21559,0.0002465,7]
[373205587,1752905457882,-151.0,0.0002465,7]
[373205588,1752905457892,-300.0,0.00024657,2]
[373205589,1752905457902,-300.0,0.00024657,2]
[373205590,1752905457912,-300.0,0.00024657,2]
[373205591,1752905457921,-372.6711302,0.00024657,2]
[373205592,1752905457931,-380.0,0.00024658,2]
[373205593,1752905457941,-623.0,0.00024658,2]
[373205594,1752905457951,-206.0,0.0002466,2]
[373205595,1752905457960,-206.0,0.0002466,2]
[373205596,1752905457970,-206.0,0.0002466,2]
[373205597,1752905457979,-206.0,0.0002466,2]
[373205598,1752905457989,-206.0,0.0002466,2]
[373205599,1752905457999,-206.0,0.0002466,2]
[373205600,1752905458008,-206.0,0.0002466,2]
[373205601,1752905458018,-255.79144,0.00024661,5]
[373205602,1752905458028,-151.0,0.00024666,7]
[373205603,1752905458038,-150.0,0.00024673,2]
[373205604,1752905458048,-455.63573362,0.00024677,14]
[373205605,1752905458062,-255.79144,0.00024697,2]
[373205606,1752905458072,-3307.68435597,0.000247,5]
[373205607,1752905458082,-76425.42,0.000247,2]
[373205608,1752905458092,-1724.49,0.00024713,4]
[373205609,1752905458102,-231.28369723,0.00024762,2]
[373205610,1752905458181,-6635.69935498,0.00024765,2]
[373205611,1752905458197,-15888.87,0.00024768,9]
[373205612,1752905458207,-103571.55,0.00024768,9]
[373205613,1752905458217,-621.96866396,0.00024777,3]
[373205614,1752905458227,-683.87180556,0.00024798,2]
[373205615,1752905458237,-150.0,0.00024799,2]
[373205616,1752905458247,-150.0,0.00024799,2]
[373205617,1752905458257,-151.0,0.000248,7]
[373205618,1752905458267,-151.0,0.000248,7]
[373205619,1752905458278,-386.078219,0.000248,7]
[373205620,1752905458288,-386.078219,0.000248,7]
[373205621,1752905458300,-253.751263,0.000248,7]
[373205622,1752905458312,-253.751263,0.000248,7]
[373205623,1752905458322,-151.0,0.000248,7]
[373205624,1752905458331,-228.289233,0.000248,7]
[373205625,1752905458341,-228.289233,0.000248,7]
[373205626,1752905458351,-309.301731,0.000248,7]
[373205627,1752905458361,-309.301731,0.000248,7]
[373205628,1752905458372,-151.0,0.000248,7]
[373205629,1752905458382,-410.668745,0.000248,7]
[373205630,1752905458392,-410.668745,0.000248,7]
[373205631,1752905458402,-156621.28962,0.000248,2]
[373205632,1752905458411,-278.913314,0.000248,7]
[373205633,1752905458421,-1724.49,0.00024813,6]
[373205634,1752905458431,-156.0,0.00024849,14]
[373205635,1752905458442,-647.0,0.00024855,2]
[373205636,1752905458456,-2156.0,0.00024855,2]
[373205637,1752905458466,-373537.12613506,0.00024898,7]
[373205638,1752905458476,-151.0,0.00024898,7]
[373205639,1752905458486,-151.0,0.00024898,7]
[373205640,1752905458498,-151.0,0.00024898,7]
[373205641,1752905458507,-151.0,0.00024898,7]
[373205642,1752905458518,-151.0,0.00024898,7]
[373205643,1752905458529,-151.0,0.00024898,7]
[373205644,1752905458540,-151.0,0.00024898,7]
[373205645,1752905458552,-200.399393,0.00024898,7]
[373205646,1752905458563,-200.399393,0.00024898,7]
[373205647,1752905458573,-151.0,0.00024898,7]
[373205648,1752905458582,-179.790355,0.00024898,7]
[373205649,1752905458592,-178.585793,0.00024898,7]
[373205650,1752905458602,-178.585793,0.00024898,7]
[373205651,1752905458611,-386.078219,0.00024898,7]
[373205652,1752905458621,-386.078219,0.00024898,7]
[373205653,1752905458630,-253.751263,0.00024898,7]
[373205654,1752905458640,-253.751263,0.00024898,7]
[373205655,1752905458649,-151.0,0.00024898,7]
[373205656,1752905458659,-228.289233,0.00024898,7]
[373205657,1752905458668,-228.289233,0.00024898,7]
[373205658,1752905458678,-309.301731,0.00024898,7]
[373205659,1752905458688,-309.301731,0.00024898,7]
[373205660,1752905458697,-151.0,0.00024898,7]
[373205661,1752905458707,-410.668745,0.00024898,7]
[373205662,1752905458717,-410.668745,0.00024898,7]
[373205663,1752905458727,-203.956326,0.00024898,7]
[373205664,1752905458737,-203.956326,0.00024898,7]
[373205665,1752905458747,-265.863656,0.00024898,7]
[373205666,1752905458756,-226.474022,0.00024898,7]
[373205667,1752905458766,-200.919079,0.00024898,7]
[373205668,1752905458776,-200.919079,0.00024898,7]
[373205669,1752905458785,-195.015007,0.00024898,7]
[373205670,1752905458795,-1201.486897,0.00024898,7]
[373205671,1752905458806,-1201.486897,0.00024898,7]
[373205672,1752905458816,-151.0,0.00024898,7]
[373205673,1752905458826,-151.0,0.00024898,7]
[373205674,1752905458838,-160.429221,0.00024898,7]
[373205675,1752905458849,-160.429221,0.00024898,7]
[373205676,1752905458859,-151.0,0.00024898,7]
[373205677,1752905458870,-151.0,0.00024898,7]
[373205678,1752905458880,-185.532593,0.00024898,7]
[373205679,1752905458891,-151.0,0.00024898,7]
[373205680,1752905458902,-185.532593,0.00024898,7]
[373205681,1752905458912,-151.0,0.000249,7]
[373205682,1752905458922,-180.548408,0.000249,7]
[373205683,1752905458934,-151.0,0.000249,7]
[373205684,1752905458945,-151.0,0.000249,7]
[373205685,1752905458956,-151.0,0.000249,7]
[373205686,1752905458967,-200.399393,0.000249,7]
[373205687,1752905458978,-200.399393,0.000249,7]
[373205688,1752905458989,-151.0,0.000249,7]
[373205689,1752905458999,-179.790355,0.000249,7]
[373205690,1752905459008,-178.585793,0.000249,7]
[373205691,1752905459017,-178.585793,0.000249,7]
[373205692,1752905459027,-386.078219,0.000249,7]
[373205693,1752905459037,-386.078219,0.000249,7]
[373205694,1752905459047,-253.751263,0.000249,7]
[373205695,1752905459058,-253.751268,0.000249,7]
[373205696,1752905459069,-151.0,0.000249,7]
[373205697,1752905459079,-228.289233,0.000249,7]
[373205698,1752905459089,-228.289237,0.000249,7]
[373205699,1752905459099,-309.301731,0.000249,7]
[373205700,1752905459109,-309.301726,0.000249,7]
[373205701,1752905459119,-151.0,0.000249,7]
[373205702,1752905459130,-410.668745,0.000249,7]
[373205703,1752905459140,-410.668754,0.000249,7]
[373205704,1752905459151,-165891.38768103,0.000249,2]
[373205705,1752905459244,-141612.0231498,0.000249,2]
[373205706,1752905459256,-1505.25,0.000249,2]
[373205707,1752905459299,-674.47,0.00018082,2]
[373205708,1752905459310,-1187.49238513,0.000249,2]
[373205709,1752905460267,-460.0,0.00016438,2]
[373205710,1752905460288,-555.44207815,0.00016438,2]
[373205711,1752905460302,-460.0,0.00016438,2]
[373205712,1752905460319,-460.0,0.00016712,2]
[373205713,1752905460336,-302.59983083,0.00016712,2]
[373205714,1752905460356,-157.40016917,0.00016712,2]
[373205715,1752905460372,-500.0,0.00018355,2]
[373205716,1752905460387,-500.0,0.00018355,2]
[373205717,1752905460402,-136.06857225,0.00018355,2]
[373205718,1752905460420,-71.66101723,0.00018355,2]
[373205719,1752905460435,-373.33849183,0.00018355,2]
[373205720,1752905460455,-126.66150817,0.00018355,2]
[373205721,1752905460465,-500.0,0.00018355,2]
[373205722,1752905460476,-33.66451409,0.00018355,2]
[373205723,1752905460490,-401.42757738,0.00018355,2]
[373205724,1752905460503,-64.90790853,0.00018355,2]
[373205725,1752905460513,-226.39224647,0.00018355,2]
[373205726,1752905460526,-273.60775353,0.00018355,2]
[373205727,1752905460536,-500.0,0.00018355,2]
[373205728,1752905460546,-259.97758018,0.00018356,2]
[373205729,1752905460558,-414.49241982,0.00018356,2]
[373205730,1752905460567,-586.50756608,0.0001863,2]
[373205731,1752905460578,-87.96243392,0.0001863,2]
[373205732,1752905460589,-674.47,0.00018904,2]
[373205733,1752905460600,-674.47,0.00019178,2]
[373205734,1752905460611,-636.31667579,0.00019452,2]
[373205735,1752905460626,-38.15332421,0.00019452,2]
[373205736,1752905460636,-674.47,0.00019726,2]
[373205737,1752905460647,-674.47,0.0002,2]
[373205738,1752905460656,-674.47,0.00020273,2]
[373205739,1752905460667,-674.47,0.00020547,2]
[373205740,1752905460677,-151.0,0.00020821,2]
[373205741,1752905460686,-674.47,0.00020821,2]
[373205742,1752905460696,-674.47,0.00021095,2]
[373205743,1752905460705,-674.47,0.00021369,2]
[373205744,1752905460715,-151.0,0.00021643,2]
[373205745,1752905460725,-674.47,0.00021643,2]
[373205746,1752905460736,-674.47,0.00021917,2]
[373205747,1752905460745,-674.47,0.00022191,2]
[373205748,1752905460755,-674.47,0.00022465,2]
[373205749,1752905460764,-151.0,0.00022651,7]
[373205750,1752905460774,-674.69415499,0.00022739,2]
[373205751,1752905460784,-151.0,0.000238,7]
[373205752,1752905460793,-241.161795,0.00024,7]
[373205753,1752905461050,-386540.62806204,0.000249,2]
[373205754,1752905461065,-4760.15730783,0.000249,12]
[373205755,1752905461078,-1724.49,0.00024913,6]
[373205756,1752905461088,-623.0,0.00024932,2]
[373205757,1752905461097,-500.0,0.00024973,2]
[373205758,1752905461109,-1128.360671,0.0002498,5]
[373205759,1752905461119,-1000.0,0.00024999,5]
[373205760,1752905461131,-1000.0,0.00024999,10]
[373205761,1752905461141,-41533.31996235,0.00025,7]
[373205762,1752905461150,-1063.20916828,0.00025,2]
[373205763,1752905461159,-15992.81743912,0.00025,2]
[373205764,1752905461168,-2000.45326917,0.00025,10]
[373205765,1752905461177,-161.1129908,0.00025,5]
[373205766,1752905461187,-187473.10464447,0.00025,30]
[373205767,1752905461196,-88023.16325325,0.00025,2]
[373205768,1752905461206,-31139.52441618,0.00025,60]
[373205769,1752905461215,-3628.15850117,0.00025,2]
[373205770,1752905461224,-358.4069627,0.00025,2]
[373205771,1752905461233,-500.0,0.00025,2]
[373205772,1752905461242,-300.0,0.00025,30]
[373205773,1752905461251,-103000.7998854,0.00025,2]
[373205774,1752905461261,-200.0,0.00025,7]
[373205775,1752905461270,-600.0,0.00025,2]
[373205776,1752905461280,-219.49244019,0.00025,2]
[373205777,1752905461289,-150.74352327,0.00025,7]
[373205778,1752905461298,-193.0343255,0.00025,3]
[373205779,1752905461308,-9000.83248635,0.00025,5]
[373205780,1752905461317,-16999.2001146,0.00025,2]
[373205781,1752905461327,-14341.76363096,0.00025,30]
[373205782,1752905461336,-160.0,0.00025,10]
[373205783,1752905461346,-160.0,0.00025,30]
[373205784,1752905461355,-104700.00000099,0.00025,30]
[373205785,1752905461365,-203847.02392562,0.00025,30]
[373205786,1752905461375,-160.0,0.00025,10]
[373205787,1752905461384,-160.0,0.00025,30]
[373205788,1752905461394,-5978.43,0.00025,7]
[373205789,1752905461403,-20108.96,0.00025,7]
[373205790,1752905461413,-5929.79780296,0.00025,5]
[373205791,1752905461422,-151.0,0.00025,7]
[373205792,1752905461431,-266.720644,0.00025,7]
[373205793,1752905461441,-151.0,0.00025,7]
[373205794,1752905461453,-250.621286,0.00025,7]
[373205795,1752905461462,-236.579059,0.00025,7]
[373205796,1752905461472,-151.830601,0.00025,7]
[373205797,1752905461482,-151.0,0.00025,7]
[373205798,1752905461491,-151.0,0.00025,7]
[373205799,1752905461501,-200.399393,0.00025,7]
[373205800,1752905461512,-200.399393,0.00025,7]
[373205801,1752905461522,-200.399393,0.00025,7]
[373205802,1752905461533,-200.399393,0.00025,7]
[373205803,1752905461543,-292.247425,0.00025,7]
[373205804,1752905461554,-179.790355,0.00025,7]
[373205805,1752905461564,-179.79035,0.00025,7]
[373205806,1752905461574,-178.585793,0.00025,7]
[373205807,1752905461583,-178.585793,0.00025,7]
[373205808,1752905461593,-178.585793,0.00025,7]
[373205809,1752905461604,-178.585794,0.00025,7]
[373205810,1752905461613,-386.078219,0.00025,7]
[373205811,1752905461624,-386.078219,0.00025,7]
[373205812,1752905461633,-1000.0,0.00025,5]
[373205813,1752905461642,-2000.0,0.00025,2]
[373205814,1752905461653,-215.67360783,0.00025,10]
[373205815,1752905461662,-215.67360783,0.00025,30]
[373205816,1752905461673,-250.0,0.00025,2]
[373205817,1752905461683,-203.956326,0.00025,7]
[373205818,1752905461693,-203.956326,0.00025,7]
[373205819,1752905461702,-203.956326,0.00025,7]
[373205820,1752905461713,-203.956321,0.00025,7]
[373205821,1752905461723,-200.919079,0.00025,7]
[373205822,1752905461734,-200.919079,0.00025,7]
[373205823,1752905461744,-200.919079,0.00025,7]
[373205824,1752905461755,-200.91907,0.00025,7]
[373205825,1752905461764,-168.0,0.00025,7]
[373205826,1752905461774,-230.94145789,0.00025,30]
[373205827,1752905461783,-230.94145789,0.00025,3]
[373205828,1752905461794,-160.0,0.00025,30]
[373205829,1752905461805,-1201.486897,0.00025,7]
[373205830,1752905461816,-1201.486897,0.00025,7]
[373205831,1752905461826,-1201.486897,0.00025,7]
[373205832,1752905461835,-1201.486905,0.00025,7]
[373205833,1752905461845,-152.737409,0.00025,7]
[373205834,1752905461855,-203.142932,0.00025,2]
[373205835,1752905461864,-151.0,0.00025,7]
[373205836,1752905461874,-160.429221,0.00025,7]
[373205837,1752905461883,-151.0,0.00025,7]
[373205838,1752905461893,-160.429221,0.00025,7]
[373205839,1752905461903,-160.429221,0.00025,7]
[373205840,1752905461912,-160.429215,0.00025,7]
[373205841,1752905461923,-151.0,0.00025,7]
[373205842,1752905461932,-151.0,0.00025,7]
[373205843,1752905461942,-839.454303,0.00025,30]
[373205844,1752905461951,-839.454303,0.00025,3]
[373205845,1752905461962,-196.345752,0.00025,7]
[373205846,1752905461972,-476.34170116,0.00025,3]
[373205847,1752905461982,-185.532593,0.00025,7]
[373205848,1752905461992,-225.355859,0.00025,7]
[373205849,1752905462002,-185.532593,0.00025,7]
[373205850,1752905462013,-185.532593,0.00025,7]
[373205851,1752905462025,-185.53258884,0.00025,7]
[373205852,1752905462034,-525.83049785,0.00025,30]
[373205853,1752905462044,-525.83049785,0.00025,3]
[373205854,1752905462053,-154.0,0.00025,7]
[373205855,1752905462064,-1724.49,0.00025013,4]
[373205856,1752905462074,-347.29030668,0.00025056,2]
[373205857,1752905462084,-2382.15,0.000251,7]
[373205858,1752905462093,-250.0,0.000251,2]
[373205859,1752905462102,-1724.49,0.00025113,3]
[373205860,1752905462112,-505.27,0.000252,30]
[373205861,1752905462121,-250.0,0.000252,2]
[373205862,1752905462131,-623.0,0.00025206,2]
[373205863,1752905462140,-623.0,0.00025206,2]
[373205864,1752905462152,-1724.49,0.00025213,3]
[373205865,1752905462161,-210.0,0.00025221,2]
[373205866,1752905462171,-5999.0,0.0002525,30]
[373205867,1752905462180,-2000.0,0.000253,2]
[373205868,1752905462189,-447.857488,0.000253,2]
[373205869,1752905462199,-6635.69935498,0.00025312,2]
[373205870,1752905462209,-1052.10536509,0.00025313,5]
[373205871,1752905462223,-672.38463491,0.00025313,5]
[373205872,1752905462232,-1173.76831532,0.00025313,4]
[373205873,1752905462267,-1560.65807544,0.00025313,4]
[373205874,1752905462280,-2265.57360924,0.00025313,4]
[373205875,1752905462290,-821.70383754,0.00025313,2]
[373205876,1752905462303,-4178.29616246,0.00025313,2]
[373205877,1752905462314,-725.3434561,0.00025317,2]
[373205878,1752905462323,-5000.0,0.00025349,5]
[373205879,1752905462334,-151.0,0.00025383,7]
[373205880,1752905462345,-200.399393,0.00025383,7]
[373205881,1752905462356,-200.399397,0.00025383,7]
[373205882,1752905462367,-387.17,0.000254,31]
[373205883,1752905462376,-387.17,0.000254,31]
[373205884,1752905462386,-387.17,0.000254,31]
[373205885,1752905462398,-387.17,0.000254,31]
[373205886,1752905462408,-387.17,0.000254,31]
[373205887,1752905462418,-387.17,0.000254,31]
[373205888,1752905462429,-387.17,0.000254,31]
[373205889,1752905462439,-387.17,0.000254,31]
[373205890,1752905462450,-387.17,0.000254,31]
[373205891,1752905462461,-387.17,0.000254,31]
[373205892,1752905462471,-387.17,0.000254,31]
[373205893,1752905462482,-387.17,0.000254,31]
[373205894,1752905462497,-387.17,0.000254,31]
[373205895,1752905462508,-387.17,0.000254,31]
[373205896,1752905462518,-387.17,0.000254,31]
[373205897,1752905462532,-387.17,0.000254,31]
[373205898,1752905462543,-1724.49,0.00025413,6]
[373205899,1752905462554,-500.0,0.00025415,2]
[373205900,1752905462565,-78866.02892402,0.00025417,20]
[373205901,1752905462581,-55575.15733851,0.00025417,20]
[373205902,1752905462593,-36871.93938067,0.00025417,20]
[373205903,1752905462722,-460.0,0.00016438,2]
[373205904,1752905462732,-460.0,0.00016438,2]
[373205905,1752905462741,-460.0,0.00016438,2]
[373205906,1752905462751,-598.51548739,0.00016438,2]
[373205907,1752905462761,-460.0,0.00016712,2]
[373205908,1752905462770,-460.0,0.00016712,2]
[373205909,1752905462780,-460.0,0.00016712,2]
[373205910,1752905462790,-460.0,0.00016986,2]
[373205911,1752905462799,-460.0,0.00016986,2]
[373205912,1752905462809,-460.0,0.0001726,2]
[373205913,1752905462819,-460.0,0.00017534,2]
[373205914,1752905462828,-460.0,0.00017808,2]
[373205915,1752905462837,-3252.56451261,0.00025417,20]
[373205916,1752905465931,-460.0,0.0001726,2]
[373205917,1752905465940,-460.0,0.00017534,2]
[373205918,1752905465951,-460.0,0.00017808,2]
[373205919,1752905465960,-460.0,0.00018082,2]
[373205920,1752905465969,-460.0,0.00018356,2]
[373205921,1752905465978,-460.0,0.0001863,2]
[373205922,1752905465987,-6088.45079178,0.00025417,20]
[373205923,1752905465999,-74044.653,0.00025417,20]
[373205924,1752905466010,-65448.78197816,0.00025417,20]
[373205925,1752905466107,12860.27609931,0.00016237,2]
[373205926,1752905466130,40000.0,0.00016237,2]
[373205927,1752905466152,30713.44016194,0.00016237,2]
[373205928,1752905466530,300.0,0.00016236,2]
[373205935,1752905593598,8986.55983806,0.00016237,2]
[373205936,1752905593629,40000.0,0.00016237,2]
[373205937,1752905593653,40000.0,0.00016237,2]
[373205938,1752905593677,40000.0,0.00016237,2]
[373205939,1752905593701,40000.0,0.00016237,2]
[373205940,1752905593725,10016.92150729,0.00016237,2]
[373205943,1752905774291,244.3390161,0.00015945,2]
[373205944,1752905821247,360.94619,0.00013699,2]
[373205945,1752905823917,24900.0,0.00015712,2]
[373205947,1752906140787,1437.1289993,0.00015514,2]
[373205964,1752906568722,658.068819,0.00015436,2]
[373206014,1752906635341,-1024.88292858,0.000164,2]
[373206015,1752906635410,-1712.11707142,0.000164,2]
[373206017,1752906635420,-1200.0,0.00016427,2]
[373206018,1752906635430,-288.7504135,0.00016428,3]
[373206019,1752906635443,-81.1595865,0.00016428,3]
[373206020,1752906635452,-380.87,0.00016428,3]
[373206021,1752906635464,-190.43,0.00016428,3]
[373206022,1752906635474,-571.33,0.00016428,3]
[373206023,1752906635485,-300.0,0.00016433,2]
[373206024,1752906635498,-300.0,0.00016433,2]